lending/lending_fUSD_20240603
["ID","MTS","AMOUNT","RATE_DAILY","PERIOD"]
[328480326,1717429840801,-500.0,0.00031231,4]
[328480327,1717429840813,-500.0,0.00031231,4]
[328480328,1717429840822,-500.0,0.00031231,4]
[328480329,1717429840832,-500.0,0.00031231,4]
[328480330,1717429840842,-500.0,0.00031231,4]
[328480331,1717429840851,-500.0,0.00031231,4]
[328480332,1717429840861,-500.0,0.00031231,4]
[328480333,1717429840870,-500.0,0.00031231,4]
[328480334,1717429840879,-500.0,0.00031231,4]
[328480335,1717429840889,-500.0,0.00031231,4]
[328480336,1717429840898,-500.0,0.00031231,4]
[328480337,1717429840908,-500.0,0.00031231,4]
[328480338,1717429840919,-500.0,0.00031231,4]
[328480339,1717429840928,-500.0,0.00031231,4]
[328480340,1717429840937,-500.0,0.00031231,4]
[328480341,1717429840947,-1392.31,0.00031231,4]
[328480342,1717429840957,-830.35,0.00031231,4]
[328480343,1717429840966,-500.0,0.00031231,4]
[328480344,1717429840976,-500.0,0.00031232,4]
[328480345,1717429840985,-500.0,0.00031232,4]
[328480346,1717429840994,-500.0,0.00031232,4]
[328480347,1717429841004,-983.46,0.00031232,4]
[328480348,1717429841013,-1350.41,0.00031232,4]
[328480349,1717429841023,-249.5,0.00031232,4]
[328480350,1717429841033,-500.0,0.00031232,4]
[328480351,1717429841042,-500.0,0.00031232,4]
[328480352,1717429841052,-860.35,0.00031232,4]
[328480353,1717429841061,-500.0,0.00031232,4]
[328480354,1717429841070,-500.0,0.00031232,4]
[328480355,1717429841080,-500.0,0.00031232,4]
[328480356,1717429841089,-500.0,0.00031232,4]
[328480357,1717429841098,-500.0,0.00031232,4]
[328480358,1717429841107,-2676.48,0.00031232,4]
[328480359,1717429841116,-586.06,0.00031232,4]
[328480360,1717429841126,-593.55,0.00031232,4]
[328480361,1717429841135,-2597.85,0.00031232,4]
[328480362,1717429841145,-591.98,0.00031232,4]
[328480363,1717429841155,-3165.87,0.00031232,4]
[328480364,1717429841164,-500.0,0.00031232,4]
[328480365,1717429841174,-500.0,0.00031232,4]
[328480366,1717429841184,-1110.13,0.00031232,4]
[328480367,1717429841193,-849.57,0.00031232,4]
[328480368,1717429841203,-746.25,0.00031232,4]
[328480369,1717429841213,-500.0,0.00031232,4]
[328480370,1717429841223,-500.0,0.00031232,4]
[328480371,1717429841233,-500.0,0.00031232,4]
[328480372,1717429841242,-626.03,0.00031232,4]
[328480373,1717429841252,-400.52,0.00031232,4]
[328480374,1717429841261,-500.0,0.00031232,4]
[328480375,1717429841270,-500.0,0.00031232,4]
[328480376,1717429841279,-500.0,0.00031232,4]
[328480377,1717429841288,-500.0,0.00031232,4]
[328480378,1717429841297,-500.0,0.00031232,4]
[328480379,1717429841306,-500.0,0.00031232,4]
[328480380,1717429841316,-500.0,0.00031232,4]
[328480381,1717429841325,-500.0,0.00031232,4]
[328480382,1717429841334,-2530.81,0.00031232,4]
[328480383,1717429841344,-500.0,0.00031232,4]
[328480384,1717429841352,-500.0,0.00031232,4]
[328480385,1717429841361,-500.0,0.00031232,4]
[328480386,1717429841370,-500.0,0.00031232,4]
[328480387,1717429841380,-627.32,0.00031232,4]
[328480388,1717429841389,-500.0,0.00031232,4]
[328480389,1717429841399,-500.0,0.00031232,4]
[328480390,1717429841408,-599.0,0.00031232,4]
[328480391,1717429841418,-204.28818122,0.00031321,7]
[328480392,1717429841428,-1000.0,0.00031351,2]
[328480393,1717429841437,-204.28818122,0.00031359,7]
[328480394,1717429841447,-154.27917163,0.00031372,7]
[328480395,1717429841456,-500.0,0.00031382,10]
[328480396,1717429841466,-159.29386833,0.00031422,7]
[328480397,1717429841476,-357.07979073,0.00031487,5]
[328480398,1717429841485,-500.0,0.00031505,4]
[328480399,1717429841494,-500.0,0.00031505,4]
[328480400,1717429841503,-500.0,0.00031505,4]
[328480401,1717429841512,-500.0,0.00031505,4]
[328480402,1717429841521,-500.0,0.00031505,4]
[328480403,1717429841530,-500.0,0.00031505,4]
[328480404,1717429841540,-500.0,0.00031505,4]
[328480405,1717429841549,-500.0,0.00031505,4]
[328480406,1717429841558,-500.0,0.00031505,4]
[328480407,1717429841567,-500.0,0.00031505,4]
[328480408,1717429841576,-500.0,0.00031505,4]
[328480409,1717429841585,-500.0,0.00031505,4]
[328480410,1717429841594,-500.0,0.00031505,4]
[328480411,1717429841603,-188.7,0.00031505,4]
[328480412,1717429841612,-500.0,0.00031505,4]
[328480413,1717429841621,-500.0,0.00031505,4]
[328480414,1717429841630,-861.6,0.00031505,4]
[328480415,1717429841639,-500.0,0.00031505,4]
[328480416,1717429841649,-500.0,0.00031505,4]
[328480417,1717429841658,-500.0,0.00031505,4]
[328480418,1717429841667,-500.0,0.00031505,4]
[328480419,1717429841676,-500.0,0.00031505,4]
[328480420,1717429841685,-500.0,0.00031505,4]
[328480422,1717429841693,-500.0,0.00031505,4]
[328480424,1717429841702,-500.0,0.00031505,4]
[328480426,1717429841711,-500.0,0.00031505,4]
[328480428,1717429841720,-403.8852887,0.00031505,4]
[328480430,1717429841729,-500.0,0.00031505,4]
[328480432,1717429841744,-500.0,0.00031505,4]
[328480434,1717429841753,-500.0,0.00031505,4]
[328480435,1717429841764,-500.0,0.00031505,4]
[328480436,1717429841773,-500.0,0.00031505,4]
[328480437,1717429841785,-1392.31,0.00031505,4]
[328480438,1717429841795,-830.35,0.00031505,4]
[328480439,1717429841804,-611.59,0.00031505,4]
[328480440,1717429841815,-500.0,0.00031506,4]
[328480441,1717429841824,-500.0,0.00031506,4]
[328480442,1717429841833,-500.0,0.00031506,4]
[328480443,1717429841843,-983.46,0.00031506,4]
[328480444,1717429841852,-1350.41,0.00031506,4]
[328480445,1717429841862,-500.0,0.00031506,4]
[328480446,1717429841871,-500.0,0.00031506,4]
[328480447,1717429841881,-860.35,0.00031506,4]
[328480448,1717429841890,-500.0,0.00031506,4]
[328480449,1717429841899,-500.0,0.00031506,4]
[328480450,1717429841908,-500.0,0.00031506,4]
[328480451,1717429841918,-500.0,0.00031506,4]
[328480452,1717429841927,-500.0,0.00031506,4]
[328480453,1717429841936,-2676.48,0.00031506,4]
[328480454,1717429841946,-586.06,0.00031506,4]
[328480455,1717429841955,-593.55,0.00031506,4]
[328480456,1717429841963,-2597.85,0.00031506,4]
[328480457,1717429841972,-591.98,0.00031506,4]
[328480458,1717429841982,-3165.87,0.00031506,4]
[328480459,1717429841991,-500.0,0.00031506,4]
[328480460,1717429842000,-500.0,0.00031506,4]
[328480461,1717429842011,-1110.13,0.00031506,4]
[328480462,1717429842019,-746.25,0.00031506,4]
[328480463,1717429842028,-849.57,0.00031506,4]
[328480464,1717429842037,-500.0,0.00031506,4]
[328480465,1717429842046,-500.0,0.00031506,4]
[328480466,1717429842056,-500.0,0.00031506,4]
[328480467,1717429842066,-626.03,0.00031506,4]
[328480468,1717429842075,-500.0,0.00031506,4]
[328480469,1717429842085,-500.0,0.00031506,4]
[328480470,1717429842094,-500.0,0.00031506,4]
[328480471,1717429842103,-500.0,0.00031506,4]
[328480472,1717429842113,-500.0,0.00031506,4]
[328480473,1717429842123,-500.0,0.00031506,4]
[328480474,1717429842132,-500.0,0.00031506,4]
[328480475,1717429842142,-2530.81,0.00031506,4]
[328480476,1717429842152,-500.0,0.00031506,4]
[328480477,1717429842161,-500.0,0.00031506,4]
[328480478,1717429842171,-500.0,0.00031506,4]
[328480479,1717429842180,-500.0,0.00031506,4]
[328480480,1717429842189,-627.32,0.00031506,4]
[328480481,1717429842198,-500.0,0.00031506,4]
[328480482,1717429842207,-500.0,0.00031506,4]
[328480483,1717429842217,-599.0,0.00031506,4]
[328480484,1717429842226,-155.60818782,0.00031533,7]
[328480485,1717429842235,-204.28818122,0.00031543,7]
[328480486,1717429842245,-309.25517656,0.00031618,2]
[328480487,1717429842254,-204.28818122,0.00031656,7]
[328480488,1717429842263,-154.54266825,0.00031667,7]
[328480489,1717429842272,-151.894178,0.00031699,3]
[328480490,1717429842281,-154.27917163,0.00031726,7]
[328480491,1717429842290,-500.0,0.00031779,4]
[328480492,1717429842299,-500.0,0.00031779,4]
[328480493,1717429842308,-500.0,0.00031779,4]
[328480494,1717429842318,-500.0,0.00031779,4]
[328480495,1717429842326,-500.0,0.00031779,4]
[328480496,1717429842336,-500.0,0.00031779,4]
[328480497,1717429842344,-500.0,0.00031779,4]
[328480498,1717429842354,-500.0,0.00031779,4]
[328480499,1717429842363,-500.0,0.00031779,4]
[328480501,1717429842372,-500.0,0.00031779,4]
[328480502,1717429842381,-500.0,0.00031779,4]
[328480504,1717429842390,-500.0,0.00031779,4]
[328480505,1717429842399,-500.0,0.00031779,4]
[328480506,1717429842408,-592.04,0.00031779,4]
[328480507,1717429842419,-500.0,0.00031779,4]
[328480508,1717429842428,-861.6,0.00031779,4]
[328480509,1717429842438,-500.0,0.00031779,4]
[328480510,1717429842447,-500.0,0.00031779,4]
[328480511,1717429842558,-500.0,0.00031779,4]
[328480512,1717429842584,-500.0,0.00031779,4]
[328480513,1717429842593,-472.95,0.00031779,4]
[328480514,1717429842603,-500.0,0.00031779,4]
[328480515,1717429842612,-500.0,0.00031779,4]
[328480516,1717429842622,-500.0,0.00031779,4]
[328480517,1717429842632,-500.0,0.00031779,4]
[328480518,1717429842641,-513.54,0.00031779,4]
[328480519,1717429842650,-500.0,0.00031779,4]
[328480520,1717429842659,-500.0,0.00031779,4]
[328480523,1717429842669,-313.04973662,0.00031779,4]
[328480524,1717429842678,-1392.31,0.00031779,4]
[328480525,1717429842687,-830.35,0.00031779,4]
[328480526,1717429842696,-500.0,0.0003178,4]
[328480527,1717429842705,-983.46,0.0003178,4]
[328480528,1717429842714,-1350.41,0.0003178,4]
[328480529,1717429842723,-500.0,0.0003178,4]
[328480530,1717429842736,-500.0,0.0003178,4]
[328480531,1717429842746,-860.35,0.0003178,4]
[328480532,1717429842757,-500.0,0.0003178,4]
[328480533,1717429842766,-500.0,0.0003178,4]
[328480534,1717429842776,-500.0,0.0003178,4]
[328480535,1717429842785,-500.0,0.0003178,4]
[328480536,1717429842795,-500.0,0.0003178,4]
[328480537,1717429842804,-2676.48,0.0003178,4]
[328480538,1717429842814,-586.06,0.0003178,4]
[328480539,1717429842823,-593.55,0.0003178,4]
[328480540,1717429842833,-2597.85,0.0003178,4]
[328480541,1717429842842,-591.98,0.0003178,4]
[328480542,1717429842852,-3165.87,0.0003178,4]
[328480543,1717429842861,-500.0,0.0003178,4]
[328480544,1717429842871,-284.52,0.0003178,4]
[328480545,1717429842880,-1110.13,0.0003178,4]
[328480546,1717429842889,-746.25,0.0003178,4]
[328480547,1717429842899,-849.57,0.0003178,4]
[328480548,1717429842909,-500.0,0.0003178,4]
[328480549,1717429842920,-500.0,0.0003178,4]
[328480550,1717429842929,-643.02,0.0003178,4]
[328480551,1717429842938,-626.03,0.0003178,4]
[328480552,1717429842947,-500.0,0.0003178,4]
[328480553,1717429842958,-500.0,0.0003178,4]
[328480554,1717429842967,-500.0,0.0003178,4]
[328480555,1717429842976,-325.47357112,0.0003178,4]
[328480556,1717429842985,-500.0,0.0003178,4]
[328480557,1717429842994,-500.0,0.0003178,4]
[328480558,1717429843004,-500.0,0.0003178,4]
[328480559,1717429843013,-2530.81,0.0003178,4]
[328480560,1717429843023,-500.0,0.0003178,4]
[328480561,1717429843033,-500.0,0.0003178,4]
[328480562,1717429843042,-500.0,0.0003178,4]
[328480563,1717429843051,-500.0,0.0003178,4]
[328480564,1717429843061,-627.32,0.0003178,4]
[328480565,1717429843071,-500.0,0.0003178,4]
[328480566,1717429843081,-500.0,0.0003178,4]
[328480567,1717429843090,-599.0,0.0003178,4]
[328480568,1717429843100,-314.307267,0.00031781,14]
[328480569,1717429843110,-204.28818122,0.00031832,7]
[328480570,1717429843119,-154.54266825,0.00031852,7]
[328480571,1717429843128,-166.66666666,0.00031858,7]
[328480572,1717429843138,-204.28818122,0.0003199,7]
[328480573,1717429843147,-91656.51994979,0.00032,13]
[328480574,1717429843156,-54110.01644013,0.00032,2]
[328480575,1717429843167,-900.0,0.00032,33]
[328480576,1717429843176,-1114.47769113,0.00032051,2]
[328480577,1717429843185,-500.0,0.00032053,4]
[328480578,1717429843194,-500.0,0.00032053,4]
[328480579,1717429843203,-500.0,0.00032053,4]
[328480580,1717429843212,-500.0,0.00032053,4]
[328480581,1717429843222,-500.0,0.00032053,4]
[328480582,1717429843231,-500.0,0.00032053,4]
[328480583,1717429843241,-382.64,0.00032053,4]
[328480584,1717429843250,-500.0,0.00032053,4]
[328480585,1717429843259,-500.0,0.00032053,4]
[328480586,1717429843269,-500.0,0.00032053,4]
[328480587,1717429843278,-375.64,0.00032053,4]
[328480588,1717429843288,-545.28156922,0.00032053,4]
[328480589,1717429843297,-500.0,0.00032053,4]
[328480590,1717429843307,-635.21,0.00032053,4]
[328480591,1717429843316,-861.6,0.00032053,4]
[328480592,1717429843325,-500.0,0.00032053,4]
[328480593,1717429843335,-500.0,0.00032053,4]
[328480595,1717429843344,-346.42,0.00032053,4]
[328480597,1717429843354,-500.0,0.00032053,4]
[328480599,1717429843363,-500.0,0.00032053,4]
[328480601,1717429843372,-390.98,0.00032053,4]
[328480603,1717429843382,-500.0,0.00032053,4]
[328480605,1717429843391,-500.0,0.00032053,4]
[328480607,1717429843401,-500.0,0.00032053,4]
[328480609,1717429843410,-300.92,0.00032053,4]
[328480611,1717429843420,-1392.31,0.00032053,4]
[328480613,1717429843429,-830.35,0.00032053,4]
[328480615,1717429843439,-500.0,0.00032054,4]
[328480617,1717429843448,-983.46,0.00032054,4]
[328480618,1717429843457,-1350.41,0.00032054,4]
[328480620,1717429843466,-500.0,0.00032054,4]
[328480622,1717429843476,-500.0,0.00032054,4]
[328480623,1717429843486,-860.35,0.00032054,4]
[328480624,1717429843496,-500.0,0.00032054,4]
[328480626,1717429843506,-500.0,0.00032054,4]
[328480627,1717429843515,-472.41,0.00032054,4]
[328480629,1717429843525,-500.0,0.00032054,4]
[328480631,1717429843534,-500.0,0.00032054,4]
[328480633,1717429843543,-2676.48,0.00032054,4]
[328480635,1717429843552,-586.06,0.00032054,4]
[328480637,1717429843561,-593.55,0.00032054,4]
[328480639,1717429843571,-2597.85,0.00032054,4]
[328480641,1717429843581,-591.98,0.00032054,4]
[328480643,1717429843590,-3165.87,0.00032054,4]
[328480645,1717429843600,-500.0,0.00032054,4]
[328480647,1717429843609,-1110.13,0.00032054,4]
[328480649,1717429843618,-746.25,0.00032054,4]
[328480653,1717429843628,-849.57,0.00032054,4]
[328480655,1717429843637,-500.0,0.00032054,4]
[328480656,1717429843647,-500.0,0.00032054,4]
[328480657,1717429843656,-626.03,0.00032054,4]
[328480658,1717429843667,-500.0,0.00032054,4]
[328480659,1717429843675,-500.0,0.00032054,4]
[328480660,1717429843684,-500.0,0.00032054,4]
[328480661,1717429843693,-310.79327724,0.00032054,4]
[328480662,1717429843702,-500.0,0.00032054,4]
[328480663,1717429843711,-578.68,0.00032054,4]
[328480664,1717429843722,-2530.81,0.00032054,4]
[328480665,1717429843733,-500.0,0.00032054,4]
[328480666,1717429843746,-500.0,0.00032054,4]
[328480667,1717429843756,-500.0,0.00032054,4]
[328480668,1717429843765,-500.0,0.00032054,4]
[328480669,1717429843775,-627.32,0.00032054,4]
[328480670,1717429843785,-283.2,0.00032054,4]
[328480671,1717429843794,-500.0,0.00032054,4]
[328480672,1717429843803,-599.0,0.00032054,4]
[328480673,1717429843813,-151.0,0.00032106,7]
[328480674,1717429843822,-886.81841427,0.00032131,2]
[328480675,1717429843836,-150.0,0.0003219,7]
[328480676,1717429843848,-156.01670739,0.00032191,7]
[328480677,1717429843858,-159.29386833,0.00032201,7]
[328480678,1717429843868,-204.28818122,0.0003225,7]
[328480679,1717429843877,-154.27917163,0.00032284,7]
[328480680,1717429843887,-593.0,0.00032301,2]
[328480681,1717429843896,-204.28818122,0.0003231,7]
[328480682,1717429843906,-500.0,0.00032327,4]
[328480683,1717429843916,-500.0,0.00032327,4]
[328480684,1717429843925,-500.0,0.00032327,4]
[328480685,1717429843934,-500.0,0.00032327,4]
[328480686,1717429843943,-159.99633602,0.00032327,4]
[328480687,1717429843952,-500.0,0.00032327,4]
[328480688,1717429843962,-500.0,0.00032327,4]
[328480689,1717429843971,-500.0,0.00032327,4]
[328480690,1717429843980,-500.0,0.00032327,4]
[328480691,1717429843989,-500.0,0.00032327,4]
[328480692,1717429843998,-861.6,0.00032327,4]
[328480693,1717429844007,-500.0,0.00032327,4]
[328480694,1717429844017,-500.0,0.00032327,4]
[328480695,1717429844027,-500.0,0.00032327,4]
[328480696,1717429844036,-429.31,0.00032327,4]
[328480697,1717429844045,-316.92522012,0.00032327,4]
[328480698,1717429844055,-500.0,0.00032327,4]
[328480699,1717429844064,-500.0,0.00032327,4]
[328480700,1717429844073,-1392.31,0.00032327,4]
[328480701,1717429844082,-830.35,0.00032327,4]
[328480702,1717429844091,-500.0,0.00032328,4]
[328480703,1717429844101,-983.46,0.00032328,4]
[328480704,1717429844110,-1350.41,0.00032328,4]
[328480705,1717429844119,-500.0,0.00032328,4]
[328480706,1717429844128,-500.0,0.00032328,4]
[328480707,1717429844137,-860.35,0.00032328,4]
[328480708,1717429844147,-500.0,0.00032328,4]
[328480709,1717429844157,-500.0,0.00032328,4]
[328480710,1717429844167,-500.0,0.00032328,4]
[328480711,1717429844176,-500.0,0.00032328,4]
[328480712,1717429844185,-2676.48,0.00032328,4]
[328480713,1717429844194,-586.06,0.00032328,4]
[328480714,1717429844203,-593.55,0.00032328,4]
[328480715,1717429844213,-2597.85,0.00032328,4]
[328480716,1717429844222,-591.98,0.00032328,4]
[328480717,1717429844231,-3165.87,0.00032328,4]
[328480718,1717429844241,-500.0,0.00032328,4]
[328480719,1717429844250,-1110.13,0.00032328,4]
[328480720,1717429844259,-746.25,0.00032328,4]
[328480721,1717429844268,-849.57,0.00032328,4]
[328480722,1717429844277,-500.0,0.00032328,4]
[328480723,1717429844286,-500.0,0.00032328,4]
[328480724,1717429844295,-626.03,0.00032328,4]
[328480725,1717429844304,-500.0,0.00032328,4]
[328480726,1717429844313,-500.0,0.00032328,4]
[328480727,1717429844322,-500.0,0.00032328,4]
[328480728,1717429844331,-500.0,0.00032328,4]
[328480729,1717429844341,-2530.81,0.00032328,4]
[328480730,1717429844351,-614.15,0.00032328,4]
[328480731,1717429844360,-500.0,0.00032328,4]
[328480732,1717429844370,-500.0,0.00032328,4]
[328480733,1717429844379,-500.0,0.00032328,4]
[328480734,1717429844388,-627.32,0.00032328,4]
[328480735,1717429844397,-621.45,0.00032328,4]
[328480736,1717429844406,-599.0,0.00032328,4]
[328480737,1717429844416,-600.0,0.00032478,10]
[328480738,1717429844426,-204.28818122,0.00032524,7]
[328480739,1717429844435,-204.28818122,0.00032531,7]
[328480740,1717429844446,-1001.3,0.000326,2]
[328480741,1717429844455,-315.42,0.000326,2]
[328480742,1717429844464,-500.0,0.00032601,4]
[328480743,1717429844473,-500.0,0.00032601,4]
[328480744,1717429844483,-500.0,0.00032601,4]
[328480745,1717429844492,-500.0,0.00032601,4]
[328480746,1717429844501,-500.0,0.00032601,4]
[328480747,1717429844511,-500.0,0.00032601,4]
[328480748,1717429844519,-580.82,0.00032601,4]
[328480749,1717429844528,-500.0,0.00032601,4]
[328480750,1717429844538,-500.0,0.00032601,4]
[328480751,1717429844547,-861.6,0.00032601,4]
[328480752,1717429844556,-500.0,0.00032601,4]
[328480753,1717429844565,-587.82,0.00032601,4]
[328480754,1717429844575,-500.0,0.00032601,4]
[328480755,1717429844584,-500.0,0.00032601,4]
[328480756,1717429844594,-500.0,0.00032601,4]
[328480757,1717429844603,-1392.31,0.00032601,4]
[328480758,1717429844612,-830.35,0.00032601,4]
[328480759,1717429844620,-500.0,0.00032602,4]
[328480760,1717429844630,-983.46,0.00032602,4]
[328480761,1717429844639,-1350.41,0.00032602,4]
[328480762,1717429844648,-211.13,0.00032602,4]
[328480763,1717429844658,-500.0,0.00032602,4]
[328480764,1717429844670,-860.35,0.00032602,4]
[328480765,1717429844680,-500.0,0.00032602,4]
[328480766,1717429844689,-500.0,0.00032602,4]
[328480767,1717429844699,-500.0,0.00032602,4]
[328480768,1717429844708,-500.0,0.00032602,4]
[328480769,1717429844718,-2676.48,0.00032602,4]
[328480770,1717429844728,-586.06,0.00032602,4]
[328480771,1717429844742,-593.55,0.00032602,4]
[328480772,1717429844751,-2597.85,0.00032602,4]
[328480773,1717429844761,-591.98,0.00032602,4]
[328480774,1717429844770,-3165.87,0.00032602,4]
[328480775,1717429844780,-500.0,0.00032602,4]
[328480776,1717429844789,-1110.13,0.00032602,4]
[328480777,1717429844798,-746.25,0.00032602,4]
[328480778,1717429844807,-849.57,0.00032602,4]
[328480779,1717429844817,-500.0,0.00032602,4]
[328480780,1717429844827,-500.0,0.00032602,4]
[328480781,1717429844836,-626.03,0.00032602,4]
[328480782,1717429844846,-500.0,0.00032602,4]
[328480783,1717429844855,-500.0,0.00032602,4]
[328480784,1717429844864,-500.0,0.00032602,4]
[328480785,1717429844874,-2530.81,0.00032602,4]
[328480786,1717429844883,-500.0,0.00032602,4]
[328480787,1717429844894,-513.46,0.00032602,4]
[328480788,1717429844904,-238.27,0.00032602,4]
[328480789,1717429844914,-627.32,0.00032602,4]
[328480790,1717429844924,-599.0,0.00032602,4]
[328480791,1717429844933,-314.307267,0.00032603,14]
[328480792,1717429844942,-543.01,0.00032605,2]
[328480793,1717429844951,-157.6094779,0.00032632,4]
[328480794,1717429844961,-593.0,0.00032634,2]
[328480795,1717429844970,-204.28818122,0.00032647,7]
[328480796,1717429844980,-154.54266825,0.00032774,7]
[328480797,1717429844989,-976.0,0.0003278,2]
[328480798,1717429844999,-1830.0,0.0003278,2]
[328480799,1717429845009,-808.0,0.0003278,2]
[328480800,1717429845018,-165.0,0.0003278,2]
[328480801,1717429845030,-150.0,0.0003278,2]
[328480802,1717429845039,-1304.0,0.0003278,2]
[328480803,1717429845048,-428.868,0.0003278,2]
[328480804,1717429845057,-3167.0,0.0003278,2]
[328480805,1717429845066,-5147.0,0.0003278,2]
[328480806,1717429845076,-168.924,0.0003278,2]
[328480807,1717429845085,-1470.0,0.0003278,2]
[328480808,1717429845094,-289.0,0.0003278,2]
[328480809,1717429845104,-150.0,0.0003278,2]
[328480810,1717429845113,-5774.0,0.0003278,2]
[328480811,1717429845122,-235.0,0.0003278,2]
[328480812,1717429845132,-963.308,0.0003278,2]
[328480813,1717429845141,-228.0,0.0003278,2]
[328480814,1717429845150,-500.0,0.00032875,4]
[328480815,1717429845160,-500.0,0.00032875,4]
[328480816,1717429845170,-500.0,0.00032875,4]
[328480817,1717429845179,-500.0,0.00032875,4]
[328480818,1717429845188,-500.0,0.00032875,4]
[328480819,1717429845198,-500.0,0.00032875,4]
[328480820,1717429845207,-500.0,0.00032875,4]
[328480821,1717429845216,-861.6,0.00032875,4]
[328480822,1717429845226,-500.0,0.00032875,4]
[328480823,1717429845235,-292.86,0.00032875,4]
[328480824,1717429845244,-460.03,0.00032875,4]
[328480825,1717429845254,-500.0,0.00032875,4]
[328480826,1717429845263,-1392.31,0.00032875,4]
[328480827,1717429845272,-830.35,0.00032875,4]
[328480828,1717429845281,-500.0,0.00032876,4]
[328480829,1717429845290,-983.46,0.00032876,4]
[328480830,1717429845413,-1350.41,0.00032876,4]
[328480831,1717429845423,-500.0,0.00032876,4]
[328480832,1717429845432,-860.35,0.00032876,4]
[328480833,1717429845441,-332.33633131,0.00032876,4]
[328480834,1717429845451,-500.0,0.00032876,4]
[328480835,1717429845460,-500.0,0.00032876,4]
[328480836,1717429845471,-323.46,0.00032876,4]
[328480837,1717429845481,-2676.48,0.00032876,4]
[328480838,1717429845490,-586.06,0.00032876,4]
[328480839,1717429845499,-593.55,0.00032876,4]
[328480840,1717429845508,-2597.85,0.00032876,4]
[328480841,1717429845517,-591.98,0.00032876,4]
[328480842,1717429845526,-3165.87,0.00032876,4]
[328480843,1717429845535,-500.0,0.00032876,4]
[328480844,1717429845545,-1110.13,0.00032876,4]
[328480845,1717429845554,-746.25,0.00032876,4]
[328480846,1717429845563,-849.57,0.00032876,4]
[328480848,1717429845573,-287.59,0.00032876,4]
[328480849,1717429845582,-500.0,0.00032876,4]
[328480850,1717429845591,-626.03,0.00032876,4]
[328480851,1717429845601,-500.0,0.00032876,4]
[328480852,1717429845610,-500.0,0.00032876,4]
[328480853,1717429845620,-500.0,0.00032876,4]
[328480855,1717429845629,-2530.81,0.00032876,4]
[328480857,1717429845639,-500.0,0.00032876,4]
[328480858,1717429845649,-627.32,0.00032876,4]
[328480859,1717429845658,-599.0,0.00032876,4]
[328480860,1717429845667,-150.0,0.00032877,2]
[328480861,1717429845681,-152.9914788,0.00032959,7]
[328480863,1717429845690,-176.46650099,0.00032967,3]
[328480864,1717429845700,-593.0,0.00032967,2]
[328480865,1717429845710,-1496.90025,0.0003297,2]
[328480866,1717429845720,-9845.16836461,0.0003298,14]
[328480867,1717429845729,-500.0,0.00033,2]
[328480868,1717429845743,-900.0,0.00033,34]
[328480869,1717429845752,-500.0,0.00033033,10]
[328480870,1717429845761,-200.0,0.00033033,10]